[Event "1st Heraklion Tal 2019"]
[Site "Heraklion"]
[Date "2019.04.29"]
[Round "1.2"]
[White "Milonakis, Georgios"]
[Black "Megalios, Konstantinos"]
[Result "0-1"]
[ECO "A11"]
[WhiteElo "2285"]
[BlackElo "2411"]
[Annotator "RC"]
[PlyCount "100"]
[EventDate "2019.04.29"]
[EventType "tourn"]
[EventCountry "GRE"]
[SourceTitle "playchess.com"]
[Source "ChessBase"]
[SourceQuality "1"]
[TimeControl "40/5400+30:1800+30"]

1. Nf3 {[%emt 0:00:00]} d5 {[%emt 0:00:10]} 2. g3 {[%emt 0:00:16]} c6 {[%emt 0:00:08]} 3. Bg2 {[%emt 0:00:15]} Bg4 {[%emt 0:00:34]} 4. c4 {[%emt 0:01:13]} e6 {[%emt 0:00:07]} 5. cxd5 {[%emt 0:00:21]} exd5 {[%emt 0:00:08]} 6. O-O {[%emt 0:00:52]} Nf6 {[%emt 0:00:07]} 7. d3 {[%emt 0:00:31]} Bc5 {[%emt 0:00:46]} 8. Nc3 {[%emt 0:00:58]} O-O {[%emt 0:01:02]} 9. Qb3 {[%emt 0:08:25]} Bb6 {[%emt 0:01:27]} 10. Na4 {[%emt 0:05:15]} Re8 {[%emt 0:03:34]} 11. Nxb6 {[%emt 0:00:56]} axb6 {[%emt 0:00:41]} 12. Re1 {[%emt 0:02:35]} Nbd7 {[%emt 0:11:03]} 13. h3 {[%emt 0:07:57]} Nc5 {[%emt 0:08:27]} 14. Qc3 {[%emt 0:08:15]} Bh5 {[%emt 0:09:23]} 15. Bg5 {[%emt 0:06:55]} Ne6 {[%emt 0:06:20]} 16. Bxf6 {[%emt 0:00:09]} Qxf6 {[%emt 0:00:09]} 17. Qxf6 {[%emt 0:00:08]} gxf6 {[%emt 0:00:05]} 18. g4 {[%emt 0:06:04]} Bg6 {[%emt 0:00:13]} 19. d4 {[%emt 0:00:42]} Ra4 {[%emt 0:08:03]} 20. e3 {[%emt 0:08:27]} Rea8 {[%emt 0:06:37]} 21. a3 {[%emt 0:00:10]} b5 {[%emt 0:02:31]} 22. Rad1 {[%emt 0:05:24]} b4 {[%emt 0:00:48]} 23. axb4 {[%emt 0:01:13]} Rxb4 {[%emt 0:00:08]} 24. Rd2 {[%emt 0:01:17]} Ra2 {[%emt 0:00:10]} 25. Ree2 {[%emt 0:01:34]} Nc7 {[%emt 0:12:54]} 26. Nh4 {[%emt 0:06:21]} Nb5 {[%emt 0:01:38]} 27. Nxg6 {[%emt 0:14:07]} hxg6 {[%emt 0:00:09]} 28. Rc2 {[%emt 0:00:10]} Nd6 {[%emt 0:02:42]} 29. h4 {[%emt 0:01:49]} f5 {[%emt 0:02:11]} 30. gxf5 {[%emt 0:04:12]} Nxf5 {[%emt 0:01:07]} 31. h5 {[%emt 0:01:11]} g5 {[%emt 0:02:14]} 32. Red2 {[%emt 0:00:54]} Kg7 {[%emt 0:00:40]} 33. Rc5 {[%emt 0:04:15]} Rbxb2 {[%emt 0:09:44]} 34. Rxb2 {[%emt 0:00:07]} Rxb2 {[%emt 0:00:02]} 35. e4 {[%emt 0:00:08]} Nxd4 {[%emt 0:01:25]} 36. exd5 {[%emt 0:00:07]} Ne2+ {[%emt 0:06:17]} 37. Kh2 {[%emt 0:00:02]} cxd5 {[%emt 0:00:11]} 38. Rxd5 {[%emt 0:00:32]} Nf4 {[%emt 0:01:11]} 39. Rxg5+ {[%emt 0:01:24]} Kf6 {[%emt 0:01:00]} 40. Rg4 {[%emt 0:00:00]} Rxf2 {[%emt 0:00:00]} 41. Kh1 {[%emt 0:09:16]} Nxg2 {[%emt 0:12:03]} 42. h6 {[%emt 0:03:10]} Ne3 {[%emt 0:10:41]} 43. Rg3 {[%emt 0:10:07]} Nf5 {[%emt 0:07:26]} 44. Rh3 {[%emt 0:00:08]} Ne7 {[%emt 0:00:52]} 45. h7 {[%emt 0:01:43]} Ng6 {[%emt 0:00:08]} 46. h8=Q+ {[%emt 0:01:43]} Nxh8 {[%emt 0:00:07]} 47. Rxh8 {[%emt 0:00:06]} b5 {[%emt 0:00:14]} 48. Kg1 {[%emt 0:00:28]} Rb2 {[%emt 0:00:17]} 49. Kf1 {[%emt 0:01:09]} Ke5 {[%emt 0:00:14]} 50. Ke1 {[%emt 0:00:03]} f5 {[%emt 0:00:41]} 0-1

[Event "1st Heraklion Tal 2019"]
[Site "Heraklion"]
[Date "2019.04.30"]
[Round "2.1"]
[White "Dimitrov, Atanas"]
[Black "Stoyanov, Tsvetan"]
[Result "1/2-1/2"]
[ECO "C48"]
[WhiteElo "2282"]
[BlackElo "2416"]
[Annotator "NA"]
[PlyCount "35"]
[EventDate "2019.04.29"]
[EventType "tourn"]
[EventCountry "GRE"]
[SourceTitle "playchess.com"]
[Source "ChessBase"]
[SourceQuality "1"]
[TimeControl "40/5400+30:1800+30"]

1. e4 {[%emt 0:00:00]} e5 {[%emt 0:00:00]} 2. Nf3 {[%emt 0:00:00]} Nc6 {[%emt 0:00:08]} 3. Nc3 {[%emt 0:01:15]} Nf6 {[%emt 0:06:11]} 4. Bb5 {[%emt 0:00:08]} a6 {[%emt 0:02:16]} 5. Bxc6 {[%emt 0:00:27]} dxc6 {[%emt 0:00:01]} 6. Nxe5 {[%emt 0:00:12]} Nxe4 {[%emt 0:00:20]} 7. Nxe4 {[%emt 0:00:04]} Qd5 {[%emt 0:01:51]} 8. O-O {[%emt 0:00:30]} Qxe5 {[%emt 0:00:29]} 9. d4 {[%emt 0:04:21]} Qf5 {[%emt 0:04:19]} 10. Re1 {[%emt 0:00:16]} Be6 {[%emt 0:01:03]} 11. Bg5 {[%emt 0:11:52]} Bd6 {[%emt 0:08:17]} 12. Qd2 $11 {[%emt 0:07:01]} h6 {[%emt 0:14:34]} 13. Bh4 {[%emt 0:09:35]} g5 {[%emt 0:01:15]} 14. Nxd6+ {[%emt 0:00:18]} cxd6 {[%emt 0:00:01]} 15. Bg3 {[%emt 0:00:10]} O-O-O {[%emt 0:00:16]} 16. Qb4 {[%emt 0:02:39]} Qd5 {[%emt 0:00:36]} 17. b3 {[%emt 0:02:09]} c5 {[%emt 0:19:03]} 18. dxc5 {[%emt 0:16:53]} 1/2-1/2

[Event "1st Heraklion Tal 2019"]
[Site "Heraklion"]
[Date "2019.04.30"]
[Round "2.2"]
[White "Antova, Gabriela"]
[Black "Navaratnam, Rohan Shan Tze"]
[Result "1/2-1/2"]
[ECO "D17"]
[WhiteElo "2246"]
[BlackElo "2068"]
[Annotator "NA"]
[PlyCount "68"]
[EventDate "2019.04.29"]
[EventType "tourn"]
[EventCountry "GRE"]
[SourceTitle "playchess.com"]
[Source "ChessBase"]
[SourceQuality "1"]
[TimeControl "40/5400+30:1800+30"]

1. d4 {[%emt 0:00:00]} d5 {[%emt 0:00:00]} 2. c4 {[%emt 0:00:00]} c6 {[%emt 0:00:00]} 3. Nf3 {[%emt 0:00:00]} Nf6 {[%emt 0:00:00]} 4. Nc3 {[%emt 0:00:00]} dxc4 {[%emt 0:00:04]} 5. a4 {[%emt 0:00:00]} Bf5 {[%emt 0:00:11]} 6. Ne5 {[%emt 0:00:11]} e6 {[%emt 0:00:13]} 7. f3 {[%emt 0:04:37]} c5 {[%emt 0:00:15]} 8. dxc5 {[%emt 0:07:43]} Qxd1+ {[%emt 0:00:27]} 9. Nxd1 {[%emt 0:04:38]} Bxc5 {[%emt 0:03:47]} 10. e4 {[%emt 0:00:34]} Bg6 {[%emt 0:00:11]} 11. Be3 {[%emt 0:04:58]} Nfd7 {[%emt 0:04:42]} 12. Nxd7 {[%emt 0:06:30]} Nxd7 {[%emt 0:00:04]} 13. Bxc4 {[%emt 0:00:26]} Ke7 {[%emt 0:02:00]} 14. Bxc5+ {[%emt 0:04:50]} Nxc5 {[%emt 0:00:02]} 15. b4 {[%emt 0:00:09]} Nd7 {[%emt 0:01:54]} 16. Ne3 {[%emt 0:00:34]} Ne5 {[%emt 0:05:08]} 17. Kf2 {[%emt 0:16:06]} Nxc4 {[%emt 0:04:07]} 18. Nxc4 {[%emt 0:00:01]} Rac8 {[%emt 0:00:30]} 19. Ne3 {[%emt 0:05:53]} Rc3 {[%emt 0:03:51]} 20. h4 {[%emt 0:06:03]} h5 {[%emt 0:03:55]} 21. Rhd1 {[%emt 0:01:38]} Rhc8 {[%emt 0:03:06]} 22. Rd4 {[%emt 0:05:20]} f6 {[%emt 0:09:12]} 23. Rad1 {[%emt 0:08:13]} Be8 {[%emt 0:00:25]} 24. b5 {[%emt 0:03:06]} Ra3 {[%emt 0:01:42]} 25. R1d2 {[%emt 0:07:25]} Rcc3 {[%emt 0:09:52]} 26. Nd1 {[%emt 0:02:05]} Rc5 {[%emt 0:03:04]} 27. Nb2 {[%emt 0:01:26]} Rc7 {[%emt 0:02:03]} 28. Rb4 {[%emt 0:05:25]} Ra2 {[%emt 0:09:33]} 29. Ke2 {[%emt 0:02:02]} a6 {[%emt 0:01:50]} 30. bxa6 {[%emt 0:03:24]} bxa6 {[%emt 0:00:03]} 31. Ke3 {[%emt 0:00:58]} a5 {[%emt 0:05:03]} 32. Rb8 {[%emt 0:00:52]} Bxa4 {[%emt 0:01:45]} 33. Nxa4 {[%emt 0:00:13]} Rxa4 {[%emt 0:00:02]} 34. Rh8 {[%emt 0:00:17]} Ra3+ {[%emt 0:06:01]} 1/2-1/2

[Event "1st Heraklion Tal 2019"]
[Site "Heraklion"]
[Date "2019.04.30"]
[Round "2.4"]
[White "Megalios, Konstantinos"]
[Black "Dudin, Gleb"]
[Result "1-0"]
[ECO "B38"]
[WhiteElo "2411"]
[BlackElo "2332"]
[Annotator "NA"]
[PlyCount "51"]
[EventDate "2019.04.29"]
[EventType "tourn"]
[EventCountry "GRE"]
[SourceTitle "playchess.com"]
[Source "ChessBase"]
[SourceQuality "1"]
[TimeControl "40/5400+30:1800+30"]

1. d4 {[%emt 0:00:00]} g6 {[%emt 0:04:58]} 2. e4 {[%emt 0:02:38]} Bg7 {[%emt 0:00:25]} 3. c4 {[%emt 0:01:24]} d6 {[%emt 0:02:27]} 4. Nc3 {[%emt 0:02:17]} c5 {[%emt 0:05:19]} 5. Nge2 {[%emt 0:05:36]} cxd4 $11 {[%emt 0:35:17]} 6. Nxd4 {[%emt 0:00:13]} a6 {[%emt 0:00:04]} 7. Be3 {[%emt 0:01:27]} Nf6 {[%emt 0:05:58]} 8. f3 {[%emt 0:03:22]} O-O {[%emt 0:08:23]} 9. Qd2 {[%emt 0:00:14]} Nc6 {[%emt 0:00:15]} 10. Be2 {[%emt 0:08:16]} Nd7 {[%emt 0:04:13]} 11. Rc1 {[%emt 0:03:08]} Nxd4 {[%emt 0:05:38]} 12. Bxd4 {[%emt 0:00:08]} Bxd4 {[%emt 0:00:11]} 13. Qxd4 {[%emt 0:00:05]} Ne5 {[%emt 0:00:06]} 14. O-O {[%emt 0:03:33]} Nc6 {[%emt 0:00:12]} 15. Qe3 {[%emt 0:03:45]} e5 {[%emt 0:04:17]} 16. Rfd1 {[%emt 0:09:02]} Be6 {[%emt 0:03:12]} 17. Bf1 {[%emt 0:04:11]} Rc8 {[%emt 0:05:51]} 18. b3 {[%emt 0:04:19]} Qa5 {[%emt 0:09:46]} 19. Rxd6 {[%emt 0:17:15]} Nd4 {[%emt 0:00:32]} 20. Na4 {[%emt 0:01:08]} b5 {[%emt 0:02:06]} 21. Nb6 {[%emt 0:02:00]} bxc4 {[%emt 0:00:45]} 22. Nxc8 {[%emt 0:02:54]} Rxc8 {[%emt 0:00:23]} 23. Bxc4 {[%emt 0:06:16]} Qc5 {[%emt 0:00:40]} 24. Rxe6 {[%emt 0:02:49]} Nxf3+ {[%emt 0:00:30]} 25. Kf2 {[%emt 0:00:25]} Qxe3+ {[%emt 0:00:30]} 26. Kxe3 {[%emt 0:00:08]} 1-0

[Event "1st Heraklion Tal 2019"]
[Site "Heraklion"]
[Date "2019.04.30"]
[Round "2.5"]
[White "Marinakis, Hristos"]
[Black "Milonakis, Georgios"]
[Result "1-0"]
[ECO "C77"]
[WhiteElo "2085"]
[BlackElo "2285"]
[Annotator "ChessBase"]
[PlyCount "85"]
[EventDate "2019.04.29"]
[EventType "tourn"]
[EventCountry "GRE"]
[SourceTitle "playchess.com"]
[Source "ChessBase"]
[SourceQuality "1"]
[TimeControl "40/5400+30:1800+30"]

1. e4 {[%emt 0:00:00]} e5 {[%emt 0:00:00]} 2. Nf3 {[%emt 0:00:00]} Nc6 {[%emt 0:00:17]} 3. Bb5 {[%emt 0:00:00]} a6 {[%emt 0:00:25]} 4. Ba4 {[%emt 0:00:00]} d6 {[%emt 0:04:33]} 5. c4 {[%emt 0:01:57]} Nf6 {[%emt 0:01:14]} 6. d3 {[%emt 0:03:12]} Be7 {[%emt 0:01:39]} 7. Nc3 {[%emt 0:00:49]} O-O {[%emt 0:00:44]} 8. O-O {[%emt 0:01:29]} Bg4 {[%emt 0:02:03]} 9. Be3 {[%emt 0:03:17]} Nd4 {[%emt 0:08:25]} 10. Bxd4 {[%emt 0:03:56]} exd4 {[%emt 0:01:06]} 11. Ne2 {[%emt 0:02:42]} Bxf3 {[%emt 0:07:11]} 12. gxf3 {[%emt 0:00:04]} c5 {[%emt 0:05:05]} 13. Ng3 {[%emt 0:02:15]} Rb8 {[%emt 0:03:56]} 14. Qe2 {[%emt 0:04:44]} b5 {[%emt 0:06:31]} 15. Bb3 {[%emt 0:02:10]} Re8 {[%emt 0:01:25]} 16. a4 {[%emt 0:06:54]} b4 {[%emt 0:04:55]} 17. Kh1 {[%emt 0:06:02]} Kh8 {[%emt 0:01:59]} 18. Rg1 {[%emt 0:02:39]} Bf8 {[%emt 0:00:36]} 19. Qf1 {[%emt 0:04:08]} Qc8 {[%emt 0:05:58]} 20. Bd1 {[%emt 0:12:43]} g6 {[%emt 0:05:38]} 21. f4 {[%emt 0:01:57]} Bh6 {[%emt 0:09:52]} 22. f5 {[%emt 0:01:13]} d5 {[%emt 0:06:42]} 23. cxd5 {[%emt 0:13:45]} c4 {[%emt 0:00:20]} 24. dxc4 {[%emt 0:01:03]} Nxe4 {[%emt 0:02:31]} 25. Nxe4 {[%emt 0:03:29]} Rxe4 {[%emt 0:00:35]} 26. Qh3 {[%emt 0:02:35]} Bg7 {[%emt 0:01:42]} 27. Qg2 {[%emt 0:07:33]} Re5 {[%emt 0:03:39]} 28. fxg6 {[%emt 0:05:27]} hxg6 {[%emt 0:02:37]} 29. Rc1 {[%emt 0:02:44]} Bh6 {[%emt 0:03:44]} 30. Bg4 {[%emt 0:02:26]} Qc5 {[%emt 0:03:05]} 31. Qg3 {[%emt 0:01:08]} Rbe8 {[%emt 0:00:17]} 32. Rc2 {[%emt 0:01:42]} Rxd5 {[%emt 0:04:40]} 33. cxd5 {[%emt 0:00:53]} Qxc2 {[%emt 0:00:08]} 34. d6 {[%emt 0:00:09]} Qe4+ {[%emt 0:01:49]} 35. f3 {[%emt 0:00:38]} Qf4 {[%emt 0:01:00]} 36. d7 {[%emt 0:00:31]} Rd8 {[%emt 0:00:49]} 37. Qh4 {[%emt 0:01:16]} Qg5 {[%emt 0:00:19]} 38. Qe1 {[%emt 0:00:06]} Qe3 {[%emt 0:00:27]} 39. Qh4 {[%emt 0:00:10]} Qg5 {[%emt 0:00:57]} 40. Qe1 {[%emt 0:00:00]} Qe3 {[%emt 0:00:00]} 41. Qxb4 {[%emt 0:13:33]} Bf4 {[%emt 0:16:45]} 42. Qb6 {[%emt 0:03:43]} Qf2 {[%emt 0:01:23]} 43. Qf6+ {[%emt 0:00:49]} 1-0

[Event "1st Heraklion Tal 2019"]
[Site "Heraklion"]
[Date "2019.05.01"]
[Round "3.1"]
[White "Milonakis, Georgios"]
[Black "Dimitrov, Atanas"]
[Result "1/2-1/2"]
[ECO "D02"]
[WhiteElo "2285"]
[BlackElo "2282"]
[Annotator "NA"]
[PlyCount "116"]
[EventDate "2019.04.29"]
[EventType "tourn"]
[EventCountry "GRE"]
[SourceTitle "playchess.com"]
[Source "ChessBase"]
[SourceQuality "1"]
[TimeControl "40/5400+30:1800+30"]

1. Nf3 {[%emt 0:00:00]} Nf6 {[%emt 0:00:00]} 2. g3 {[%emt 0:00:00]} g6 {[%emt 0:00:00]} 3. Bg2 {[%emt 0:00:00]} Bg7 {[%emt 0:00:00]} 4. O-O {[%emt 0:00:29]} O-O {[%emt 0:00:00]} 5. d4 {[%emt 0:00:26]} c5 {[%emt 0:04:55]} 6. c3 {[%emt 0:03:29]} d5 {[%emt 0:00:42]} 7. dxc5 {[%emt 0:03:46]} a5 {[%emt 0:01:40]} 8. a4 {[%emt 0:18:09]} Na6 {[%emt 0:00:14]} 9. Na3 {[%emt 0:04:13]} Nxc5 {[%emt 0:01:11]} 10. Bf4 {[%emt 0:02:49]} Bd7 {[%emt 0:04:37]} 11. Nb5 {[%emt 0:00:29]} Bxb5 {[%emt 0:00:45]} 12. axb5 {[%emt 0:00:09]} Qb6 {[%emt 0:01:44]} 13. Nd4 {[%emt 0:06:51]} a4 {[%emt 0:07:40]} 14. Be5 {[%emt 0:05:33]} Rfd8 {[%emt 0:01:38]} 15. Qc2 {[%emt 0:15:48]} Rac8 {[%emt 0:00:44]} 16. Rfd1 {[%emt 0:00:46]} Ng4 {[%emt 0:04:48]} 17. Bxg7 {[%emt 0:00:31]} Kxg7 {[%emt 0:00:03]} 18. Qc1 {[%emt 0:18:19]} Qf6 {[%emt 0:16:02]} 19. Qf4 {[%emt 0:00:16]} h5 {[%emt 0:02:36]} 20. Qxf6+ {[%emt 0:00:36]} Kxf6 {[%emt 0:01:44]} 21. Nc2 {[%emt 0:01:46]} e6 {[%emt 0:00:20]} 22. f4 {[%emt 0:02:48]} Nh6 {[%emt 0:03:04]} 23. Nb4 {[%emt 0:01:25]} Nf5 {[%emt 0:00:36]} 24. Nd3 {[%emt 0:04:41]} Ne3 {[%emt 0:00:24]} 25. Rdb1 {[%emt 0:00:54]} Nc4 {[%emt 0:05:15]} 26. Nxc5 {[%emt 0:00:21]} Rxc5 {[%emt 0:00:03]} 27. Rxa4 {[%emt 0:01:00]} Rxb5 {[%emt 0:00:09]} 28. b3 {[%emt 0:04:36]} Nd6 {[%emt 0:00:41]} 29. Rd4 {[%emt 0:00:32]} Rc8 {[%emt 0:00:33]} 30. Rd3 {[%emt 0:01:45]} Ke7 {[%emt 0:00:52]} 31. Kf2 {[%emt 0:00:30]} f5 {[%emt 0:12:11]} 32. Ke1 {[%emt 0:00:08]} Ra8 {[%emt 0:04:08]} 33. Rdd1 {[%emt 0:01:04]} Ne4 {[%emt 0:21:13]} 34. Bxe4 {[%emt 0:01:10]} fxe4 {[%emt 0:00:10]} 35. c4 {[%emt 0:00:37]} Rc5 {[%emt 0:00:07]} 36. cxd5 {[%emt 0:00:22]} exd5 {[%emt 0:00:50]} 37. b4 {[%emt 0:00:19]} Rb5 {[%emt 0:00:31]} 38. Rb2 {[%emt 0:00:45]} Ke6 {[%emt 0:00:28]} 39. Kf2 {[%emt 0:01:02]} Ra4 {[%emt 0:01:46]} 40. Rd4 {[%emt 0:00:00]} Ra3 {[%emt 0:00:00]} 41. e3 {[%emt 0:05:38]} Rc3 {[%emt 0:02:21]} 42. Ke2 {[%emt 0:02:25]} Rc4 {[%emt 0:03:03]} 43. Rxc4 {[%emt 0:04:05]} dxc4 {[%emt 0:00:03]} 44. Kd2 {[%emt 0:00:12]} Rd5+ {[%emt 0:00:33]} 45. Kc3 {[%emt 0:00:13]} b5 {[%emt 0:00:07]} 46. Rd2 {[%emt 0:09:10]} Rd3+ {[%emt 0:15:48]} 47. Rxd3 {[%emt 0:00:13]} cxd3 {[%emt 0:00:05]} 48. h3 {[%emt 0:00:37]} Kf5 {[%emt 0:00:16]} 49. Kd2 {[%emt 0:00:49]} g5 {[%emt 0:00:13]} 50. fxg5 {[%emt 0:01:57]} Kxg5 {[%emt 0:00:02]} 51. Kc3 {[%emt 0:00:16]} Kf5 {[%emt 0:00:06]} 52. Kb3 {[%emt 0:00:48]} Ke5 {[%emt 0:00:22]} 53. Kc3 {[%emt 0:00:38]} Kd5 {[%emt 0:00:12]} 54. Kb3 {[%emt 0:00:06]} Ke5 {[%emt 0:01:52]} 55. Kc3 {[%emt 0:00:08]} Kf5 {[%emt 0:00:19]} 56. Kb3 {[%emt 0:00:29]} Ke5 {[%emt 0:00:15]} 57. Kc3 {[%emt 0:00:14]} Kd5 {[%emt 0:00:07]} 58. Kb3 {[%emt 0:00:09]} Ke5 {[%emt 0:00:07]} 1/2-1/2

[Event "1st Heraklion Tal 2019"]
[Site "Heraklion"]
[Date "2019.05.01"]
[Round "3.4"]
[White "Navaratnam, Rohan Shan Tze"]
[Black "De Seroux, Camille"]
[Result "1-0"]
[ECO "B07"]
[WhiteElo "2068"]
[BlackElo "2151"]
[Annotator "NA"]
[PlyCount "49"]
[EventDate "2019.04.29"]
[EventType "tourn"]
[EventCountry "GRE"]
[SourceTitle "playchess.com"]
[Source "ChessBase"]
[SourceQuality "1"]
[TimeControl "40/5400+30:1800+30"]

1. e4 {[%emt 0:00:18]} c5 {[%emt 0:00:00]} 2. c3 {[%emt 0:00:15]} d6 {[%emt 0:04:08]} 3. d4 {[%emt 0:01:28]} Nf6 {[%emt 0:00:09]} 4. Bd3 {[%emt 0:01:54]} e5 {[%emt 0:06:24]} 5. Nf3 {[%emt 0:03:24]} Nc6 {[%emt 0:06:10]} 6. Be3 {[%emt 0:01:42]} cxd4 {[%emt 0:12:00]} 7. cxd4 {[%emt 0:00:04]} Ng4 {[%emt 0:00:35]} 8. O-O {[%emt 0:03:30]} Nxe3 {[%emt 0:11:43]} 9. fxe3 {[%emt 0:00:02]} Be7 {[%emt 0:00:43]} 10. Nc3 {[%emt 0:03:10]} O-O {[%emt 0:01:44]} 11. Nd5 {[%emt 0:13:07]} Bg4 {[%emt 0:10:06]} 12. Be2 {[%emt 0:03:49]} Bxf3 {[%emt 0:13:12]} 13. Rxf3 {[%emt 0:13:06]} Bg5 {[%emt 0:01:55]} 14. a3 {[%emt 0:14:12]} Rc8 {[%emt 0:00:47]} 15. Rg3 {[%emt 0:08:57]} Ne7 {[%emt 0:12:43]} 16. Qb3 {[%emt 0:00:36]} Nxd5 {[%emt 0:06:16]} 17. Qxd5 {[%emt 0:00:02]} Rc2 {[%emt 0:01:44]} 18. Bc4 {[%emt 0:07:19]} Bh4 {[%emt 0:04:24]} 19. Rf3 {[%emt 0:01:34]} Qg5 {[%emt 0:00:49]} 20. Bf1 {[%emt 0:02:42]} Rxb2 {[%emt 0:02:14]} 21. Qxd6 {[%emt 0:01:33]} exd4 {[%emt 0:01:10]} 22. exd4 {[%emt 0:01:53]} Qd2 {[%emt 0:00:13]} 23. Rxf7 {[%emt 0:08:04]} Rxf7 {[%emt 0:00:33]} 24. Qb8+ {[%emt 0:00:26]} Rf8 {[%emt 0:00:48]} 25. Bc4+ {[%emt 0:00:08]} 1-0

[Event "1st Heraklion Tal 2019"]
[Site "Heraklion"]
[Date "2019.05.02"]
[Round "4.1"]
[White "Dimitrov, Atanas"]
[Black "Antova, Gabriela"]
[Result "1-0"]
[ECO "D30"]
[WhiteElo "2282"]
[BlackElo "2246"]
[Annotator "NA"]
[PlyCount "45"]
[EventDate "2019.04.29"]
[EventType "tourn"]
[EventCountry "GRE"]
[SourceTitle "playchess.com"]
[Source "ChessBase"]
[SourceQuality "1"]
[TimeControl "40/5400+30:1800+30"]

1. Nf3 {[%emt 0:00:00]} d5 {[%emt 0:00:00]} 2. g3 {[%emt 0:00:00]} Nf6 {[%emt 0:00:00]} 3. Bg2 {[%emt 0:00:00]} e6 {[%emt 0:00:00]} 4. b3 {[%emt 0:00:14]} c5 {[%emt 0:03:26]} 5. Bb2 {[%emt 0:00:06]} Nc6 {[%emt 0:01:13]} 6. O-O {[%emt 0:00:07]} Be7 {[%emt 0:00:04]} 7. d4 {[%emt 0:01:17]} O-O {[%emt 0:14:44]} 8. c4 {[%emt 0:01:11]} b6 {[%emt 0:10:16]} 9. cxd5 {[%emt 0:00:43]} exd5 {[%emt 0:01:12]} 10. Nc3 {[%emt 0:00:31]} Bb7 {[%emt 0:01:36]} 11. dxc5 {[%emt 0:01:42]} bxc5 {[%emt 0:00:40]} 12. Rc1 {[%emt 0:00:09]} Rc8 {[%emt 0:09:26]} 13. Na4 {[%emt 0:04:58]} Ne4 {[%emt 0:05:16]} 14. Nd2 {[%emt 0:02:35]} Nb4 {[%emt 0:06:44]} 15. a3 {[%emt 0:00:32]} Na6 {[%emt 0:00:04]} 16. Nxe4 {[%emt 0:00:14]} dxe4 {[%emt 0:00:01]} 17. Qc2 {[%emt 0:00:29]} Bg5 {[%emt 0:04:40]} 18. e3 {[%emt 0:04:14]} Qe8 {[%emt 0:03:52]} 19. Rfd1 {[%emt 0:10:09]} f5 {[%emt 0:05:59]} 20. Qc4+ {[%emt 0:00:00]} Kh8 {[%emt 0:04:04]} 21. Rd6 {[%emt 0:00:00]} Nb8 {[%emt 0:08:30]} 22. Nxc5 {[%emt 0:00:00]} Bc6 {[%emt 0:03:56]} 23. Bxg7+ {[%emt 0:00:00]} 1-0

[Event "1st Heraklion Tal 2019"]
[Site "Heraklion"]
[Date "2019.05.02"]
[Round "4.5"]
[White "Milonakis, Georgios"]
[Black "Dudin, Gleb"]
[Result "0-1"]
[ECO "A21"]
[WhiteElo "2285"]
[BlackElo "2332"]
[Annotator "NA"]
[PlyCount "70"]
[EventDate "2019.04.29"]
[EventType "tourn"]
[EventCountry "GRE"]
[SourceTitle "playchess.com"]
[Source "ChessBase"]
[SourceQuality "1"]
[TimeControl "40/5400+30:1800+30"]

1. Nf3 {[%emt 0:00:00]} g6 {[%emt 0:00:00]} 2. g3 {[%emt 0:00:13]} Bg7 {[%emt 0:00:00]} 3. Bg2 {[%emt 0:00:11]} e5 {[%emt 0:01:23]} 4. O-O {[%emt 0:02:12]} Ne7 {[%emt 0:02:44]} 5. c4 {[%emt 0:02:36]} c6 {[%emt 0:02:05]} 6. Nc3 {[%emt 0:01:19]} d5 {[%emt 0:01:56]} 7. cxd5 {[%emt 0:06:21]} cxd5 {[%emt 0:02:05]} 8. d3 {[%emt 0:03:02]} h6 {[%emt 0:04:31]} 9. Bd2 {[%emt 0:09:39]} O-O {[%emt 0:04:16]} 10. b4 {[%emt 0:06:44]} Be6 {[%emt 0:03:57]} 11. Rc1 {[%emt 0:02:59]} b6 {[%emt 0:10:43]} 12. Rc2 {[%emt 0:05:58]} Nbc6 {[%emt 0:03:40]} 13. b5 {[%emt 0:06:27]} Nb4 {[%emt 0:09:05]} 14. Rb2 {[%emt 0:03:10]} d4 {[%emt 0:00:09]} 15. Nb1 {[%emt 0:21:56]} Nbd5 {[%emt 0:08:49]} 16. Rc2 {[%emt 0:00:00]} Qd7 {[%emt 0:08:56]} 17. Na3 {[%emt 0:00:00]} Nc3 {[%emt 0:03:28]} 18. Bxc3 {[%emt 0:00:25]} dxc3 {[%emt 0:00:11]} 19. e4 {[%emt 0:10:09]} Rfc8 {[%emt 0:10:24]} 20. Qc1 {[%emt 0:03:34]} a6 {[%emt 0:14:10]} 21. Rxc3 {[%emt 0:04:29]} axb5 {[%emt 0:00:57]} 22. Rxc8+ {[%emt 0:00:10]} Rxc8 {[%emt 0:00:13]} 23. Qb1 {[%emt 0:00:40]} Rc5 {[%emt 0:06:20]} 24. Rd1 {[%emt 0:01:36]} Nc8 {[%emt 0:01:16]} 25. Qb2 {[%emt 0:02:46]} Nd6 {[%emt 0:00:32]} 26. Ne1 {[%emt 0:01:46]} Qa7 {[%emt 0:00:38]} 27. Nec2 {[%emt 0:00:49]} Qa4 {[%emt 0:00:09]} 28. Ra1 {[%emt 0:01:22]} h5 {[%emt 0:00:25]} 29. Nb4 {[%emt 0:00:28]} Bh6 {[%emt 0:00:25]} 30. Nac2 {[%emt 0:00:34]} Bd2 {[%emt 0:00:17]} 31. Rf1 {[%emt 0:02:41]} Bxa2 {[%emt 0:01:07]} 32. d4 {[%emt 0:01:10]} exd4 {[%emt 0:00:37]} 33. Qxd4 {[%emt 0:00:03]} Nc4 {[%emt 0:00:27]} 34. Qd8+ {[%emt 0:00:38]} Kh7 {[%emt 0:00:31]} 35. Qf8 {[%emt 0:01:23]} Ne5 {[%emt 0:00:36]} 0-1